bitfinex-derivatives/quotes_SOLF0:USTF0_20241222
["timestamp","ask_amount","ask_price","bid_price","bid_amount"]
[1734841177158,2.7291,183.31,183.26,2.98]
[1734841178259,2.98,183.35,183.26,2.98]
[1734841178562,2.729,183.32,183.26,2.98]
[1734841178761,2.98,183.35,183.24,14.47360005]
[1734841178961,2.7291,183.31,183.27,2.7296]
[1734841179358,2.98,183.35,183.24,17.45360005]
[1734841179665,2.7289,183.33,183.28,2.7295]
[1734841180266,2.7291,183.31,183.26,2.7297]
[1734841183766,2.96,183.3,183.21,14.47360005]
[1734841185060,2.96,183.3,183.19,2.96]
[1734841185256,2.96,183.3,183.18,14.47360005]
[1734841185462,2.96,183.3,183.2,2.96]
[1734841185765,2.7299,183.26,183.22,2.7304]
[1734841186368,2.96,183.3,183.21,2.7306]
[1734841186369,2.7301,183.25,183.21,2.7306]
[1734841186669,2.96,183.3,183.19,2.96]
[1734841186870,5.1125,183.29,183.19,2.96]
[1734841187366,2.7301,183.25,183.2,2.7306]
[1734841187670,5.1125,183.29,183.19,2.96]
[1734841187867,5.1125,183.29,183.18,14.47360005]
[1734841189471,2.7302,183.24,183.19,2.7308]
[1734841190464,5.1125,183.29,183.19,2.7308]
[1734841190666,2.7303,183.23,183.19,2.7308]
[1734841191971,2.7307,183.21,183.16,2.7313]
[1734841192172,2.98,183.22,183.1,2.98]
[1734841192470,2.98,183.21,183.1,2.98]
[1734841192671,2.98,183.2,183.09,16.10310005]
[1734841192871,7.9993,183.2,183.09,19.08310005]
[1734841193067,7.9993,183.2,183.08,60.5152713]
[1734841193068,2.7318,183.13,183.08,63.2477713]
[1734841193272,2.98,183.14,183.08,60.5152713]
[1734841193676,2.7322,183.1,183.05,2.7329]
[1734841194173,2.98,183.14,183.03,76.61837135]
[1734841194373,17.43360005,183.13,183.03,60.5152713]
[1734841194571,4.6956,183.12,183.03,60.5152713]
[1734841195174,1.6783,183.11,182.97,14.47360005]
[1734841195664,1.675,183.1,182.97,14.47360005]
[1734841196373,2.733,183.05,182.97,14.47360005]
[1734841196574,2.96,183.06,182.97,14.47360005]
[1734841196776,2.96,183.05,182.97,14.47360005]
[1734841198169,5.693,183.05,182.99,2.7337]
[1734841199070,2.96,183.05,182.95,2.96]
[1734841199270,2.96,183.05,182.93,14.47360005]
[1734841199469,1.6701,183.04,182.9,14.47360005]
[1734841200171,16.14370005,183.04,182.88,2.96]
[1734841200870,2.96,183.03,182.9,14.47360005]
[1734841201375,2.96,183.02,182.9,14.47360005]
[1734841202267,2.7338,183.0,182.92,2.7348]
[1734841202468,1.6701,183.04,182.9,14.47360005]
[1734841202672,2.96,183.06,182.96,14.47360005]
[1734841203176,2.7331,183.04,182.98,2.7339]
[1734841203675,2.733,183.05,182.99,2.7338]
[1734841203876,2.733,183.05,182.96,14.47360005]
[1734841204073,2.96,183.06,182.96,14.47360005]
[1734841204277,2.7331,183.04,182.98,2.734]
[1734841205780,2.7331,183.04,182.96,14.47360005]
[1734841205781,2.96,183.06,182.96,17.20780005]
[1734841205976,2.96,183.06,182.88,14.47360005]
[1734841206180,2.734,182.99,182.94,23.48947064]
[1734841206377,2.96,183.01,182.94,23.48947064]
[1734841207471,2.96,183.06,182.94,23.48947064]
[1734841208379,2.96,183.06,182.98,2.7339]
[1734841208576,2.96,183.06,182.94,23.48947064]
[1734841209579,2.7333,183.03,182.97,2.7341]
[1734841213181,2.7333,183.03,182.94,23.48947064]
[1734841213377,2.7333,183.03,182.98,2.734]
[1734841213584,1.6737,183.09,182.97,26.46947064]
[1734841213777,2.98,183.08,182.97,26.46947064]
[1734841214080,2.98,183.08,183.0,26.22307064]
[1734841214283,2.7327,183.07,183.0,23.48947064]
[1734841214678,5.7125,183.08,183.03,2.7332]
[1734841215275,1.675,183.1,183.0,23.48947064]
[1734841215475,1.675,183.1,183.04,2.733]
[1734841215476,7.3873,183.1,183.04,2.733]
[1734841216579,2.7319,183.12,183.03,23.48947064]
[1734841216884,1.6837,183.14,183.03,23.48947064]
[1734841217586,1.6837,183.14,183.06,23.48947064]
[1734841217881,2.98,183.15,183.06,23.48947064]
[1734841218079,2.7311,183.18,183.09,23.48947064]
[1734841218288,1.695,183.19,183.1,2.96]
[1734841218782,2.7313,183.16,183.1,5.6921]
[1734841218987,1.695,183.19,183.1,2.96]
[1734841220684,1.695,183.19,183.07,2.96]
[1734841221884,2.7317,183.14,183.08,2.7324]
[1734841222281,2.7317,183.14,183.09,2.7324]
[1734841224492,2.96,183.16,183.06,26.44947064]
[1734841224792,2.96,183.16,183.0,23.48947064]
[1734841225087,2.7323,183.1,183.05,2.733]
[1734841225280,2.7323,183.1,183.0,26.44947064]
[1734841225480,2.96,183.11,183.0,26.44947064]
[1734841225481,2.96,183.11,183.01,2.96]
[1734841225682,2.7325,183.08,183.02,2.7333]
[1734841225880,2.7325,183.08,183.01,2.96]
[1734841226090,2.96,183.11,183.01,2.96]
[1734841226288,2.7324,183.1,183.04,2.733]
[1734841226490,2.7324,183.1,183.01,2.96]
[1734841226689,2.96,183.15,183.03,14.44613945]
[1734841227593,2.96,183.18,183.06,14.44613945]
[1734841227890,4.655,183.19,183.09,14.44613945]
[1734841228091,4.655,183.19,183.09,17.40613945]
[1734841228291,2.731,183.18,183.12,2.7319]
[1734841229188,4.655,183.19,183.09,17.40613945]
[1734841229389,4.655,183.19,183.1,2.7321]
[1734841230390,2.732,183.12,183.08,2.96]
[1734841230595,2.96,183.14,183.04,2.96]
[1734841230792,2.96,183.13,183.04,2.96]
[1734841230985,2.7325,183.09,183.04,2.733]
[1734841231192,2.96,183.11,183.03,14.44613945]
[1734841231493,2.7324,183.09,183.05,2.7329]
[1734841231692,2.7324,183.09,183.03,14.44613945]
[1734841231895,2.7324,183.09,183.02,2.96]
[1734841232292,2.7325,183.08,183.04,2.7331]
[1734841233096,2.7324,183.09,183.02,2.96]
[1734841233297,2.7324,183.09,183.05,2.7329]
[1734841234101,2.7324,183.09,183.04,2.7331]
[1734841236797,2.7322,183.1,183.05,2.7329]
[1734841237101,14.44613945,183.16,183.02,2.96]
[1734841237303,2.96,183.15,183.02,2.96]
[1734841238005,2.7323,183.1,183.05,2.7328]
[1734841238395,2.7323,183.1,183.02,2.96]
[1734841238798,16.14113945,183.19,183.03,14.44613945]
[1734841239300,2.96,183.18,183.03,14.44613945]
[1734841239896,2.7317,183.14,183.09,2.7323]
[1734841240204,2.96,183.17,183.09,2.7323]
[1734841241406,2.7318,183.13,183.09,2.7323]
[1734841243413,2.732,183.12,183.08,2.7325]
[1734841243705,2.732,183.12,183.06,2.96]
[1734841243706,2.96,183.13,182.98,63.9484713]
[1734841243901,3.4422,183.11,182.98,63.9484713]
[1734841244101,2.7331,183.04,182.98,63.9484713]
[1734841244503,2.7331,183.04,182.98,3.4332]
[1734841244706,2.7334,183.02,182.97,2.7341]
[1734841244904,2.96,183.03,182.96,60.5152713]
[1734841245207,2.96,183.02,182.96,60.5152713]
[1734841245409,2.7336,183.01,182.96,63.2495713]
[1734841245600,2.96,183.02,182.96,60.5152713]
[1734841245907,2.96,183.02,182.94,14.44613945]
[1734841246110,2.96,183.02,182.93,25.21743882]
[1734841247403,5.6934,183.02,182.97,2.7341]
[1734841249108,2.96,183.02,182.93,28.17743882]
[1734841249306,2.96,183.02,182.93,25.21743882]
[1734841249511,2.96,183.02,182.93,23.49063882]
[1734841250413,2.734,182.99,182.94,2.7346]
[1734841250808,2.96,182.98,182.86,60.5152713]
[1734841251012,2.7346,182.94,182.86,60.5152713]
[1734841251309,2.96,182.95,182.86,60.5152713]
[1734841251506,2.96,182.94,182.86,60.5152713]
[1734841251706,2.7348,182.93,182.88,2.7355]
[1734841252011,2.96,182.94,182.86,60.5152713]
[1734841252513,2.96,182.94,182.91,2.735]
[1734841253014,2.7348,182.93,182.88,2.7354]
[1734841253215,2.7348,182.93,182.84,26.45063882]
[1734841253414,2.96,182.94,182.84,26.45063882]
[1734841255005,2.96,182.94,182.84,23.49063882]
[1734841255311,2.7353,182.9,182.84,2.736]
[1734841255807,2.96,182.9,182.79,26.45063882]
[1734841256009,2.96,182.9,182.79,23.49063882]
[1734841256417,2.7358,182.86,182.81,2.7365]
[1734841256618,2.96,182.85,182.76,26.45063882]
[1734841257311,2.7361,182.84,182.78,2.7369]
[1734841257509,2.7361,182.84,182.76,23.49063882]
[1734841258109,2.7361,182.84,182.77,2.7371]
[1734841258315,2.96,182.85,182.73,23.49063882]
[1734841258512,1.7316,182.84,182.73,23.49063882]
[1734841258719,1.7316,182.84,182.73,2.7376]
[1734841258909,2.7369,182.79,182.73,2.7376]
[1734841259218,5.6969,182.79,182.73,2.7376]
[1734841259619,2.96,182.79,182.71,1.6786]
[1734841259822,2.96,182.79,182.74,2.7376]
[1734841260712,2.96,182.79,182.71,1.6786]
[1734841260914,2.96,182.79,182.75,2.7374]
[1734841261218,2.96,182.79,182.67,25.25653882]
[1734841262917,2.96,182.79,182.67,23.49063882]
[1734841263115,2.96,182.79,182.64,23.49063882]
[1734841264121,2.96,182.78,182.67,23.49063882]
[1734841264319,2.96,182.77,182.67,26.45063882]
[1734841264616,3.3842,182.83,182.7,23.49063882]
[1734841264617,2.96,182.8,182.7,23.49063882]
[1734841264812,3.3842,182.83,182.7,23.49063882]
[1734841265012,2.96,182.82,182.7,23.49063882]
[1734841266526,3.3842,182.83,182.7,23.49063882]
[1734841266726,2.96,182.82,182.7,23.49063882]
[1734841266925,2.7367,182.81,182.74,2.7374]
[1734841267531,2.96,182.82,182.73,2.7377]
[1734841268022,2.7371,182.78,182.73,2.7377]
[1734841268323,5.6971,182.78,182.73,2.7377]
[1734841269029,5.697,182.78,182.7,23.49063882]
[1734841269224,2.96,182.78,182.68,4.6459]
[1734841269628,2.96,182.78,182.7,2.7382]
[1734841270229,2.7375,182.75,182.7,2.7382]
[1734841270419,2.96,182.78,182.64,23.49063882]
[1734841270626,2.96,182.77,182.64,23.49063882]
[1734841270825,2.96,182.76,182.64,23.49063882]
[1734841271227,2.7378,182.73,182.64,23.49063882]
[1734841271428,2.96,182.72,182.64,23.49063882]
[1734841272424,5.6979,182.72,182.67,2.7385]
[1734841274528,2.96,182.72,182.64,23.49063882]
[1734841275430,2.96,182.72,182.66,2.7387]
[1734841275626,2.96,182.72,182.64,23.49063882]
[1734841276131,5.6979,182.72,182.67,2.7386]
[1734841277330,2.96,182.72,182.62,19.19287532]
[1734841277831,2.96,182.72,182.67,2.7385]
[1734841278829,2.96,182.72,182.68,2.7385]
[1734841279029,2.96,182.72,182.62,14.50437532]
[1734841279336,14.50437532,182.81,182.69,2.7382]
[1734841279633,2.96,182.8,182.65,17.46437532]
[1734841280025,2.7375,182.75,182.7,2.7381]
[1734841280233,5.6975,182.75,182.7,2.7381]
[1734841281031,3.3842,182.83,182.69,2.96]
[1734841281032,2.96,182.8,182.69,2.96]
[1734841281226,2.96,182.8,182.69,6.3717]
[1734841281427,5.6967,182.8,182.75,2.7373]
[1734841282434,14.50437532,182.91,182.81,2.7365]
[1734841282631,1.7348,182.9,182.81,2.7365]
[1734841282931,4.6948,182.9,182.79,2.96]
[1734841283326,14.50437532,182.87,182.54,409.30847689]
[1734841283529,14.50437532,182.74,182.6,1.00573074]
[1734841283734,4.7113,182.73,182.59,1.6959]
[1734841283927,2.7388,182.66,182.6,2.7396]
[1734841284127,2.7388,182.66,182.65,60.5152713]
[1734841284527,2.96,182.69,182.65,60.5152713]
[1734841284731,1.7513,182.73,182.65,60.5152713]
[1734841284931,17.46437532,182.77,182.65,60.5152713]
[1734841285130,17.46437532,182.77,182.62,1.6959]
[1734841285337,1.7513,182.76,182.62,4.6559]
[1734841286639,2.7378,182.73,182.62,4.6559]
[1734841287340,2.7378,182.73,182.67,2.7386]
[1734841287539,23.57285615,182.8,182.66,2.96]
[1734841287738,2.96,182.79,182.66,2.96]
[1734841287937,2.96,182.79,182.71,2.738]
[1734841288543,2.7371,182.77,182.71,2.738]
[1734841289344,23.57285615,182.83,182.69,2.96]
[1734841289545,3.475,182.84,182.7,28.49675615]
[1734841289843,27.04785615,182.84,182.7,4.9239]
[1734841290033,27.04785615,182.84,182.7,7.8839]
[1734841290233,23.57285615,182.81,182.7,7.8839]
[1734841290432,2.96,182.8,182.64,23.57285615]
[1734841290635,2.96,182.8,182.65,7.8839]
[1734841291437,2.737,182.78,182.69,2.7383]
[1734841291635,2.737,182.78,182.7,2.96]
[1734841292445,2.737,182.78,182.71,2.7379]
[1734841292839,2.737,182.78,182.7,2.96]
[1734841293144,2.96,182.8,182.7,2.96]
[1734841293345,2.96,182.83,182.7,2.96]
[1734841293846,2.7366,182.81,182.76,2.7373]
[1734841294550,2.7366,182.81,182.74,2.96]
[1734841296047,2.7366,182.81,182.68,60.5152713]
[1734841296346,2.7366,182.81,182.69,2.96]
[1734841296749,2.7366,182.81,182.75,2.7374]
[1734841296945,2.7364,182.82,182.74,2.96]
[1734841297141,2.96,182.83,182.76,2.7373]
[1734841298347,2.96,182.83,182.73,2.7376]
[1734841298849,2.7369,182.79,182.73,2.7376]
[1734841299249,2.7369,182.79,182.74,2.7376]
[1734841301151,2.737,182.78,182.72,2.7378]
[1734841301456,2.96,182.79,182.72,2.7378]
[1734841301753,2.96,182.79,182.69,2.96]
[1734841302143,5.6969,182.79,182.69,2.96]
[1734841303448,5.6969,182.79,182.73,2.7377]
[1734841303949,2.7371,182.78,182.73,2.7377]
[1734841305259,23.57285615,182.78,182.65,4.9239]
[1734841305447,3.3231,182.77,182.66,2.96]
[1734841305651,2.7377,182.74,182.68,2.7385]
[1734841305851,3.3231,182.77,182.68,2.7385]
[1734841305852,2.96,182.75,182.68,2.7385]
[1734841306256,2.7378,182.73,182.68,2.7385]
[1734841307653,14.50628429,182.74,182.6,14.50628429]
[1734841307857,2.96,182.75,182.61,2.96]
[1734841308052,2.7381,182.71,182.65,2.7388]
[1734841308254,2.96,182.75,182.65,2.7388]
[1734841308955,2.7383,182.7,182.65,2.7388]
[1734841309661,2.96,182.71,182.6,17.46628429]
[1734841309860,2.7384,182.69,182.64,2.7391]
[1734841310953,2.7382,182.7,182.65,2.7389]
[1734841313165,2.96,182.71,182.65,2.7389]
[1734841313360,2.7384,182.69,182.65,2.7389]
[1734841313561,2.7384,182.69,182.6,2.96]
[1734841313757,2.7384,182.69,182.64,2.7391]
[1734841314060,2.7389,182.66,182.59,1.6367]
[1734841314257,2.96,182.66,182.55,1.6753]
[1734841314461,2.7395,182.62,182.55,2.96]
[1734841314663,2.96,182.66,182.55,5.7003]
[1734841314664,4.551,182.66,182.55,5.7003]
[1734841314862,14.50628429,182.64,182.52,1.6571]
[1734841315059,1.7111,182.63,182.5,62.1905713]
[1734841315368,14.50628429,182.61,182.5,63.2563713]
[1734841315563,1.7297,182.6,182.5,63.2563713]
[1734841315866,1.7297,182.6,182.5,2.7411]
[1734841316059,2.7406,182.55,182.5,2.7411]
[1734841316364,2.7406,182.55,182.49,2.7413]
[1734841316968,2.7407,182.54,182.47,2.7415]
[1734841317264,14.50628429,182.58,182.43,4.6384]
[1734841317265,2.96,182.53,182.43,4.6384]
[1734841317462,2.96,182.52,182.44,2.742]
[1734841317662,2.96,182.51,182.4,63.8616713]
[1734841317861,2.96,182.5,182.4,66.8216713]
[1734841318567,2.96,182.5,182.4,6.3064]
[1734841318864,2.96,182.53,182.41,14.50628429]
[1734841319261,1.6634,182.55,182.41,14.50628429]
[1734841319464,4.7206,182.56,182.44,14.50628429]
[1734841319670,4.7206,182.56,182.45,2.96]
[1734841319861,7.4609,182.56,182.5,2.7412]
[1734841320060,4.7206,182.56,182.45,2.96]
[1734841320267,2.96,182.59,182.47,23.61423576]
[1734841320471,2.96,182.59,182.54,2.7406]
[1734841320764,2.96,182.59,182.51,2.96]
[1734841320960,2.96,182.59,182.54,2.7406]
[1734841321959,2.96,182.59,182.51,2.96]
[1734841322266,5.6999,182.59,182.53,2.7407]
[1734841322761,5.6999,182.59,182.51,2.96]
[1734841322963,2.96,182.59,182.48,3.2526]
[1734841323668,2.96,182.59,182.51,2.741]
[1734841323970,2.96,182.59,182.48,3.2526]
[1734841324163,2.96,182.59,182.47,2.96]
[1734841324963,2.96,182.59,182.49,2.7413]
[1734841325168,2.96,182.59,182.47,2.96]
[1734841325764,2.96,182.59,182.51,2.7411]
[1734841326473,2.7402,182.57,182.51,2.7411]
[1734841328267,2.7403,182.56,182.51,2.7411]
[1734841330073,4.6897,182.6,182.47,2.96]
[1734841330267,25.34733576,182.64,182.49,23.61423576]
[1734841330571,1.7331,182.64,182.49,23.61423576]
[1734841330870,1.7331,182.64,182.52,23.61423576]
[1734841331074,2.7394,182.63,182.58,2.7399]
[1734841331571,4.6931,182.64,182.59,2.7398]
[1734841332272,4.6931,182.64,182.6,2.7397]
[1734841332478,2.7393,182.63,182.53,2.96]
[1734841332670,4.6931,182.64,182.53,2.96]
[1734841332971,7.4323,182.64,182.53,2.96]
[1734841333174,4.6931,182.64,182.53,2.96]
[1734841333375,4.6931,182.64,182.56,2.7403]
[1734841333580,2.7393,182.63,182.53,2.96]
[1734841333874,4.6931,182.64,182.6,2.7397]
[1734841334076,2.96,182.66,182.55,23.61423576]
[1734841334377,23.61423576,182.75,182.58,26.57423576]
[1734841334668,2.96,182.74,182.61,23.61423576]
[1734841335073,2.7381,182.71,182.59,4.6938]
[1734841335473,2.7381,182.71,182.65,2.7388]
[1734841336278,2.7381,182.71,182.59,4.6938]
[1734841336573,2.7381,182.71,182.66,2.7388]
[1734841336774,2.96,182.74,182.63,2.96]
[1734841336978,5.1969,182.76,182.64,2.96]
[1734841337179,2.96,182.75,182.7,2.7382]
[1734841337676,23.61423576,182.81,182.69,2.96]
[1734841337878,2.96,182.8,182.69,2.96]
[1734841338078,5.6967,182.8,182.72,2.7379]
[1734841338374,2.96,182.8,182.69,2.96]
[1734841339573,2.96,182.82,182.7,23.61423576]
[1734841339774,2.96,182.82,182.7,25.35453576]
[1734841340585,2.96,182.82,182.69,2.96]
[1734841341486,2.7369,182.79,182.73,2.7377]
[1734841341785,2.96,182.78,182.73,2.7377]
[1734841342085,2.7369,182.79,182.73,2.7377]
[1734841342386,2.96,182.79,182.69,2.96]
[1734841342587,2.96,182.82,182.69,2.96]
[1734841342782,5.6964,182.82,182.72,2.7378]
[1734841342983,5.6964,182.82,182.69,2.96]
[1734841343689,5.6964,182.82,182.75,2.7373]
[1734841345896,23.61423576,182.81,182.68,1.6948]
[1734841346088,23.61423576,182.81,182.64,23.61423576]
[1734841346288,23.61423576,182.81,182.64,26.57423576]
[1734841346490,23.61423576,182.78,182.64,26.57423576]
[1734841346689,7.9968,182.77,182.64,26.57423576]
[1734841346994,2.7377,182.74,182.69,2.7382]
[1734841347497,2.96,182.73,182.61,23.61423576]
[1734841347690,2.96,182.72,182.59,6.3605]
[1734841347887,26.57423576,182.72,182.57,1.6985]
[1734841348096,2.7386,182.68,182.61,2.7395]
[1734841348298,2.96,182.67,182.61,2.7395]
[1734841348489,23.61423576,182.72,182.58,23.61423576]
[1734841348693,5.6982,182.71,182.65,2.7388]
[1734841348896,2.96,182.71,182.58,23.61423576]
[1734841349292,5.6981,182.71,182.58,23.61423576]
[1734841350196,2.96,182.71,182.58,23.61423576]
[1734841350395,2.96,182.71,182.61,23.61423576]
[1734841350598,2.96,182.71,182.62,2.96]
[1734841351398,2.96,182.71,182.66,2.7387]
[1734841354298,5.6977,182.74,182.69,2.7383]
[1734841355513,2.96,182.74,182.57,16.20634068]
[1734841355801,14.50784068,182.73,182.58,2.96]
[1734841356092,14.50784068,182.73,182.65,2.739]
[1734841356093,2.7382,182.7,182.65,2.739]
[1734841356298,2.96,182.69,182.58,2.96]
[1734841356696,2.96,182.72,182.67,2.7386]
[1734841358405,5.698,182.72,182.67,2.7386]
[1734841358803,2.96,182.72,182.63,2.96]
[1734841359004,2.96,182.72,182.68,2.7384]
[1734841362303,2.7378,182.73,182.68,2.7384]
[1734841362804,2.96,182.74,182.66,2.7387]
[1734841362999,2.96,182.74,182.57,16.20634068]
[1734841363205,14.50784068,182.73,182.57,19.16634068]
[1734841363606,14.50784068,182.73,182.62,2.7394]
[1734841363808,14.50784068,182.73,182.57,16.20634068]
[1734841364108,14.50784068,182.7,182.59,2.7398]
[1734841364309,7.9751,182.69,182.53,2.96]
[1734841364907,2.7394,182.62,182.58,2.74]
[1734841365104,2.7394,182.62,182.53,2.96]
[1734841365304,2.96,182.63,182.51,16.09844068]
[1734841365506,2.96,182.63,182.56,2.7403]
[1734841366201,2.7396,182.61,182.56,2.7403]
[1734841368210,2.96,182.63,182.52,2.96]
[1734841368410,5.6994,182.63,182.58,2.74]
[1734841369211,2.96,182.63,182.6,2.7397]
[1734841369516,2.96,182.66,182.54,17.46784068]
[1734841370008,5.6988,182.66,182.54,17.46784068]
[1734841370514,5.6988,182.66,182.6,2.7396]
[1734841370916,2.96,182.66,182.6,2.7396]
[1734841371110,2.96,182.66,182.58,2.7399]
[1734841371515,2.7391,182.64,182.54,17.46784068]
[1734841371710,2.7391,182.64,182.59,2.7398]
[1734841374420,2.7393,182.63,182.59,2.7398]
[1734841374620,2.96,182.62,182.54,2.96]
[1734841375226,2.96,182.62,182.51,19.05844068]
[1734841376421,2.7399,182.59,182.55,2.7404]
[1734841376622,2.96,182.62,182.55,2.7404]
[1734841377121,2.96,182.62,182.51,19.05844068]
[1734841377323,2.7397,182.6,182.56,2.7403]
[1734841378423,5.6995,182.62,182.57,2.74]
[1734841378819,2.96,182.62,182.51,19.05844068]
[1734841379128,2.96,182.62,182.58,2.7399]
[1734841380423,5.6994,182.62,182.58,2.7399]
[1734841380619,2.96,182.62,182.56,2.7402]
[1734841380824,2.96,182.62,182.51,19.05844068]
[1734841381123,2.7396,182.61,182.57,2.7401]
[1734841383525,5.6994,182.62,182.58,2.74]
[1734841386425,5.0151,182.69,182.55,2.96]
[1734841386618,2.96,182.68,182.55,2.96]
[1734841387127,2.7391,182.65,182.6,2.7396]
[1734841387826,2.7391,182.65,182.61,2.7394]
[1734841388228,2.96,182.66,182.5,60.5152713]
[1734841388528,14.50784068,182.59,182.5,60.5152713]
[1734841388828,2.7409,182.53,182.5,60.5152713]
[1734841389031,2.96,182.52,182.5,60.5152713]
[1734841390327,2.96,182.52,182.42,19.14234068]
[1734841390526,2.96,182.52,182.48,2.7415]
[1734841391927,2.96,182.52,182.42,19.14234068]
[1734841392127,2.96,182.52,182.47,2.7416]
[1734841392930,2.96,182.52,182.42,16.18234068]
[1734841393129,2.96,182.52,182.42,1.6745]
[1734841393531,2.7408,182.53,182.43,2.7421]
[1734841393731,2.96,182.52,182.42,1.6745]
[1734841394030,2.96,182.51,182.42,1.6745]
[1734841394227,2.7413,182.5,182.42,1.6745]
[1734841395529,2.7413,182.5,182.45,2.742]
[1734841397733,2.96,182.51,182.36,63.4752713]
[1734841397930,3.3517,182.5,182.36,65.2409713]
[1734841398130,2.7417,182.47,182.42,2.7423]
[1734841398330,5.7017,182.47,182.42,2.7423]
[1734841399230,2.96,182.47,182.36,1.7657]
[1734841399732,17.46784068,182.47,182.35,60.5152713]
[1734841400034,17.46784068,182.47,182.35,63.2585713]
[1734841400035,2.7427,182.41,182.35,63.2585713]
[1734841400241,2.96,182.4,182.35,63.2585713]
[1734841400434,5.7027,182.4,182.35,2.7433]
[1734841403235,5.7027,182.4,182.31,14.50784068]
[1734841403236,2.96,182.4,182.31,14.50784068]
[1734841403830,2.96,182.4,182.33,2.7437]
[1734841404132,2.96,182.4,182.31,14.50784068]
[1734841405033,2.7423,182.43,182.31,14.50784068]
[1734841405231,2.96,182.44,182.34,14.50784068]
[1734841405433,2.96,182.45,182.38,2.743]
[1734841405633,2.96,182.45,182.35,2.96]
[1734841405935,2.96,182.45,182.4,2.7426]
[1734841406538,2.7416,182.48,182.35,2.96]
[1734841406735,2.96,182.46,182.36,1.7046]
[1734841407738,2.96,182.46,182.42,2.7423]
[1734841411135,2.96,182.46,182.36,1.7046]
[1734841411438,2.96,182.46,182.43,2.7422]
[1734841413539,2.96,182.46,182.36,1.7046]
[1734841413738,2.7417,182.47,182.41,2.7424]
[1734841413940,2.96,182.46,182.41,2.7424]
[1734841414136,2.96,182.46,182.42,2.7424]
[1734841414534,2.96,182.46,182.36,1.7046]
[1734841416441,2.96,182.46,182.42,2.7423]
[1734841423650,2.96,182.46,182.43,2.7422]
[1734841425550,5.7018,182.46,182.37,9.09172178]
[1734841426051,2.96,182.46,182.39,2.7427]
[1734841426248,2.96,182.46,182.37,9.09172178]
[1734841426650,2.96,182.46,182.38,1.6123]
[1734841427554,2.96,182.46,182.43,2.7422]
[1734841429356,2.96,182.46,182.38,1.6123]
[1734841429562,2.96,182.46,182.37,9.09172178]
[1734841430257,2.96,182.46,182.34,12.05172178]
[1734841430448,2.96,182.46,182.34,9.09172178]
[1734841430652,2.7427,182.4,182.36,2.7433]
[1734841430847,2.96,182.39,182.33,60.5152713]
[1734841431855,2.96,182.39,182.3,60.5152713]
[1734841432254,1.6537,182.4,182.3,60.5152713]
[1734841432452,4.6137,182.4,182.3,75.07510018]
[1734841432651,2.96,182.4,182.3,14.55982888]
[1734841432863,2.7424,182.42,182.37,2.743]
[1734841433159,2.96,182.44,182.33,2.96]
[1734841433358,2.96,182.44,182.34,14.55982888]
[1734841433563,2.96,182.44,182.34,16.18682888]
[1734841433758,2.96,182.44,182.35,1.6133]
[1734841435269,2.96,182.44,182.42,2.7424]
[1734841436059,2.96,182.44,182.41,2.7425]
[1734841438956,5.7022,182.44,182.37,2.743]
[1734841439262,2.96,182.44,182.35,1.6133]
[1734841439461,2.96,182.44,182.33,63.4752713]